Workbook

Sheet паспорт
A1: ПАТ "УКРТРАНСГАЗ" | G1: ПАСПОРТ ФІЗИКО-ХІМІЧНИХ ПОКАЗНИКІВ ПРИРОДНОГО ГАЗУ № 673
A2: Філія "УМГ "ХАРКІВТРАНСГАЗ" | G2: переданого Харківським ЛВУМГ та прийнятого ПАТ "Харківгаз" | AD2: Зміїв
A3: Харківський п/м Харківського ЛВУМГ | G3: Маршрут № 673
A4: Вимірювальна хіміко-аналітична лабораторія
A5: Свідоцтво про атестацію № 100-359/2015 чинне до 20.12.18 р. | K5: з газопроводу ШХ | V5: за період з | X5: 01.04.2017 р. | Z5: по | AA5: 30.04.2017 р.
A7: Число місяця | B7: Компонентний склад, мол. % | N7: Фізико-хімічні показники газу обчислені на основі компонентного складу, 101,325 кПа | X7: Температура точки роси за вологою (Р = 3.92 МПа), °С | Y7: Температура точки роси за вуглеводнями, °С | Z7: Вміст сірководню, г/м3 | AA7: Вміст меркаптанової сірки, г/м3 | AB7: Вміст механічних домішок, г/м3
N8: Густина абсолютна, кг/м3,при 20 °С, | O8: Температура вимірювання/згоряння при 20/25°С
B9: метан, С1 | C9: етан, С2 | D9: пропан, С3 | E9: ізо-бутан, і-С4 | F9: н-бутан, н-С4 | G9: нео-пентан, нео-С5 | H9: ізо-пентан, і-С5 | I9: н-пентан, н-С5 | J9: гексани та вищі, С6+ | K9: кисень, О2 | L9: азот, N2 | M9: діоксид вуглецю, CО2 | O9: Теплота згоряння нижча | R9: Теплота згоряння вища | U9: Число Воббе вище
O10: ккал/м³ | P10: МДж/м³ | Q10: кВт⋅год/м³ | R10: ккал/м³ | S10: МДж/м³ | T10: кВт⋅год/м³ | U10: ккал/м³ | V10: МДж/м³ | W10: кВт⋅год/м³
A11: 1 | O11: =P11*238.8459 -> 8311.83732 | P11: 34.8 | Q11: =P11/3.6 -> 9.666666667 | R11: =S11*238.8459 -> 9197.955609 | S11: 38.51 | T11: =S11/3.6 -> 10.69722222 | U11: =V11*238.8459 -> 11598.3569 | V11: 48.56 | W11: =V11/3.6 -> 13.48888889 | AC11: =SUM(B11:M11)+$K$42+$N$42 -> 0
A12: 2 | O12: =P12*238.8459 -> 8311.83732 | P12: 34.8 | Q12: 9.666666667 | R12: =S12*238.8459 -> 9197.955609 | S12: 38.51 | T12: =S12/3.6 -> 10.69722222 | U12: =V12*238.8459 -> 11598.3569 | V12: 48.56 | W12: =V12/3.6 -> 13.48888889 | AC12: 0
A13: 3 | B13: 89.0407 | C13: 4.6529 | D13: 1.5418 | E13: 0.1559 | F13: 0.3147 | G13: 0.0033 | H13: 0.0773 | I13: 0.0688 | J13: 0.1509 | K13: 0.1391 | L13: 2.7506 | M13: 1.1041 | N13: 0.7573 | O13: 8318.262275 | P13: 34.8269 | Q13: 9.674138889 | R13: 9205.312063 | S13: 38.5408 | T13: 10.70577778 | U13: 11608.86612 | V13: 48.604 | W13: =V13/3.6 -> 13.50111111 | X13: -8.7 | Y13: -2.3 | Z13: 0.0014 | AA13: 0.0002 | AB13: відсутні | AC13: 100.0001 | AD13: =IF(AC13=100,"ОК"," ") -> 
A14: 4 | O14: 8318.262275 | P14: 34.8269 | Q14: 9.674138889 | R14: 9205.312063 | S14: 38.5408 | T14: 10.70577778 | U14: 11608.86612 | V14: 48.604 | W14: 13.50111111 | AC14: 0 | AD14: =IF(AC14=100,"ОК"," ") -> 
A15: 5 | O15: 8318.262275 | P15: 34.8269 | Q15: 9.674138889 | R15: 9205.312063 | S15: 38.5408 | T15: 10.70577778 | U15: 11608.86612 | V15: 48.604 | W15: 13.50111111 | AC15: 0
A16: 6 | O16: 8318.262275 | P16: 34.8269 | Q16: 9.674138889 | R16: 9205.312063 | S16: 38.5408 | T16: 10.70577778 | U16: 11608.86612 | V16: 48.604 | W16: 13.50111111 | AC16: 0
A17: 7 | O17: 8318.262275 | P17: 34.8269 | Q17: 9.674138889 | R17: 9205.312063 | S17: 38.5408 | T17: 10.70577778 | U17: 11608.86612 | V17: 48.604 | W17: 13.50111111 | AC17: 0
A18: 8 | O18: 8318.262275 | P18: 34.8269 | Q18: 9.674138889 | R18: 9205.312063 | S18: 38.5408 | T18: 10.70577778 | U18: 11608.86612 | V18: 48.604 | W18: 13.50111111 | AC18: 0
A19: 9 | O19: 8318.262275 | P19: 34.8269 | Q19: 9.674138889 | R19: 9205.312063 | S19: 38.5408 | T19: 10.70577778 | U19: 11608.86612 | V19: 48.604 | W19: 13.50111111 | AC19: 0
A20: 10 | B20: 89.4805 | C20: 4.6376 | D20: 1.5 | E20: 0.1486 | F20: 0.2973 | G20: 0.003 | H20: 0.0694 | I20: 0.06 | J20: 0.0872 | K20: 0.1042 | L20: 2.481 | M20: 1.1312 | N20: 0.7528 | O20: 8305.913942 | P20: 34.7752 | Q20: =P20/3.6 -> 9.659777778 | R20: 9192.939845 | S20: 38.489 | T20: =S20/3.6 -> 10.69138889 | U20: 11628.18876 | V20: 48.6849 | W20: 13.52358333 | X20: -9.1 | Y20: -3.2 | AC20: 100 | AD20: ОК
A21: 11 | O21: 8305.913942 | P21: 34.7752 | Q21: 9.659777778 | R21: 9192.939845 | S21: 38.489 | T21: 10.69138889 | U21: 11628.18876 | V21: 48.6849 | W21: 13.52358333 | AC21: 0
A22: 12 | O22: 8305.913942 | P22: 34.7752 | Q22: 9.659777778 | R22: 9192.939845 | S22: 38.489 | T22: 10.69138889 | U22: 11628.18876 | V22: 48.6849 | W22: 13.52358333 | AC22: 0
A23: 13 | O23: 8305.913942 | P23: 34.7752 | Q23: 9.659777778 | R23: 9192.939845 | S23: 38.489 | T23: 10.69138889 | U23: 11628.18876 | V23: 48.6849 | W23: 13.52358333 | AC23: 0
A24: 14 | O24: 8305.913942 | P24: 34.7752 | Q24: 9.659777778 | R24: 9192.939845 | S24: 38.489 | T24: 10.69138889 | U24: 11628.18876 | V24: 48.6849 | W24: 13.52358333 | AC24: 0
A25: 15 | O25: 8305.913942 | P25: 34.7752 | Q25: 9.659777778 | R25: 9192.939845 | S25: 38.489 | T25: 10.69138889 | U25: 11628.18876 | V25: 48.6849 | W25: 13.52358333 | AC25: 0
A26: 16 | O26: 8305.913942 | P26: 34.7752 | Q26: =P26/3.6 -> 9.659777778 | R26: 9192.939845 | S26: 38.489 | T26: =S26/3.6 -> 10.69138889 | U26: 11628.18876 | V26: 48.6849 | W26: 13.52358333 | AC26: 0
A27: 17 | O27: 8305.913942 | P27: 34.7752 | Q27: 9.659777778 | R27: 9192.939845 | S27: 38.489 | T27: 10.69138889 | U27: 11628.18876 | V27: 48.6849 | W27: 13.52358333 | AC27: 0
A28: 18 | B28: 89.5941 | C28: 4.6254 | D28: 1.4863 | E28: 0.1461 | F28: 0.2917 | G28: 0.003 | H28: 0.0673 | I28: 0.0576 | J28: 0.087 | K28: 0.0778 | L28: 2.4306 | M28: 1.1332 | N28: 0.7519 | O28: 8306.773787 | P28: 34.7788 | Q28: 9.660777778 | R28: 9194.086305 | S28: 38.4938 | T28: 10.69272222 | U28: 11636.50059 | V28: 48.7197 | W28: 13.53325 | X28: -8.6 | Y28: -2.9 | AC28: 100.0001
A29: 19 | O29: 8306.773787 | P29: 34.7788 | Q29: 9.660777778 | R29: 9194.086305 | S29: 38.4938 | T29: 10.69272222 | U29: 11636.50059 | V29: 48.7197 | W29: 13.53325 | AC29: 0
A30: 20 | O30: 8306.773787 | P30: 34.7788 | Q30: 9.660777778 | R30: 9194.086305 | S30: 38.4938 | T30: 10.69272222 | U30: 11636.50059 | V30: 48.7197 | W30: 13.53325 | AC30: 0 | AD30: =IF(AC30=100,"ОК"," ") -> 
A31: 21 | O31: 8306.773787 | P31: 34.7788 | Q31: 9.660777778 | R31: 9194.086305 | S31: 38.4938 | T31: 10.69272222 | U31: 11636.50059 | V31: 48.7197 | W31: 13.53325 | AC31: 0
A32: 22 | O32: 8306.773787 | P32: 34.7788 | Q32: 9.660777778 | R32: 9194.086305 | S32: 38.4938 | T32: 10.69272222 | U32: 11636.50059 | V32: 48.7197 | W32: 13.53325 | AC32: 0
A33: 23 | O33: 8306.773787 | P33: 34.7788 | Q33: =P33/3.6 -> 9.660777778 | R33: 9194.086305 | S33: 38.4938 | T33: =S33/3.6 -> 10.69272222 | U33: 11636.50059 | V33: 48.7197 | W33: 13.53325 | AC33: 0 | AD33: =IF(AC33=100,"ОК"," ") -> 
A34: 24 | B34: 89.6056 | C34: 4.6467 | D34: 1.49 | E34: 0.146 | F34: 0.2908 | G34: 0.0029 | H34: 0.0669 | I34: 0.0571 | J34: 0.0814 | K34: 0.0868 | L34: 2.3879 | M34: 1.1379 | N34: 0.7518 | O34: 8308.708439 | P34: 34.7869 | Q34: 9.663027778 | R34: 9196.283688 | S34: 38.503 | T34: 10.69527778 | U34: 11640.29824 | V34: 48.7356 | W34: 13.53766667 | X34: -8.9 | Y34: -2.4 | Z34: 0.0012 | AA34: 0.0002 | AB34: відсутні | AC34: 100 | AD34: ОК
A35: 25 | O35: 8308.708439 | P35: 34.7869 | Q35: 9.663027778 | R35: 9196.283688 | S35: 38.503 | T35: 10.69527778 | U35: 11640.29824 | V35: 48.7356 | W35: 13.53766667 | AC35: 0
A36: 26 | O36: 8308.708439 | P36: 34.7869 | Q36: 9.663027778 | R36: 9196.283688 | S36: 38.503 | T36: =S36/3.6 -> 10.69527778 | U36: 11640.29824 | V36: 48.7356 | W36: 13.53766667 | AC36: 0
A37: 27 | O37: 8308.708439 | P37: 34.7869 | Q37: 9.663027778 | R37: 9196.283688 | S37: 38.503 | T37: 10.69527778 | U37: 11640.29824 | V37: 48.7356 | W37: 13.53766667 | AC37: 0
A38: 28 | O38: 8308.708439 | P38: 34.7869 | Q38: 9.663027778 | R38: 9196.283688 | S38: 38.503 | T38: 10.69527778 | U38: 11640.29824 | V38: 48.7356 | W38: 13.53766667 | AC38: 0
A39: 29 | O39: 8308.708439 | P39: 34.7869 | Q39: =P39/3.6 -> 9.663027778 | R39: 9196.283688 | S39: 38.503 | T39: =S39/3.6 -> 10.69527778 | U39: 11640.29824 | V39: 48.7356 | W39: 13.53766667 | AC39: =SUM(B39:M39)+$K$42+$N$42 -> 0
A40: 30 | O40: 8308.708439 | P40: 34.7869 | Q40: =P40/3.6 -> 9.663027778 | R40: 9196.283688 | S40: 38.503 | T40: =S40/3.6 -> 10.69527778 | U40: 11640.29824 | V40: 48.7356 | W40: 13.53766667 | AC40: =SUM(B40:M40)+$K$42+$N$42 -> 0
A41: 31 | AC41: =SUM(B41:M41)+$K$42+$N$42 -> 0
A42: Рівень одоризації відповідає чинним нормативним документам | O42: 8309.528075 | P42: 34.79033166 | Q42: 9.663981015 | R42: 9196.635401 | S42: 38.50447255 | T42: 10.69568682
H43: Середньозважене значення теплоти згоряння:
B46: Начальник Харківського ЛВУМГ | O46: Ханикін С.Ю. | V46: 03.05.2017 р.
C47: Підрозділу підприємства, якому підпорядкована лабораторія | O47: прізвище | R47: підпис | V47: дата
B48: Завідувач лабораторії Харківського п/м Харківського ЛВУМГ | O48: Крупчицький Д.О. | V48: 03.05.2017 р.
C49: Лабораторія, де здійснювалось вимірювання газу | O49: прізвище | R49: підпис | V49: дата
B50: Інженер служби ГВ та М | O50: Семутін С.М. | V50: 03.05.2017 р.
C51: Підрозділу, відповідального за облік газу за маршрутом | O51: прізвище | R51: підпис | V51: дата

Sheet додаток
A2: Додаток до Паспорту фізико-хімічних показників природного газу №673
A4: Область | B4: ГРС, прямий споживач | C4: Cередньозважене значення вищої теплоти згоряння
C5: МДж/м³ | D5: ккал/м³ | E5: кВт*год./м³
A6: Харківська область | B6: ='[1] розрахунок'!C6 -> ГРС Зміїв ПАТ "Харківгаз" | C6: 38.50442923 | D6: 9196.625052 | E6: 10.69567478
B7: ='[1] розрахунок'!D6 -> ГРС Соколове ПАТ "Харківгаз" | C7: 38.50490241 | D7: 9196.73807 | E7: 10.69580622
B8: ='[1] розрахунок'!E6 -> ГРС Н. Бішкін ПАТ "Харківгаз" | C8: 38.50466169 | D8: 9196.680576 | E8: 10.69573936
B9: ='[1] розрахунок'!F6 -> ГРС Бірки ПАТ "Харківгаз" | C9: 38.50450802 | D9: 9196.643872 | E9: 10.69569667
A10: Середньозважене значення вищої теплоти згоряння по маршруту № 673 | C10: 38.50447255 | D10: 9196.635401 | E10: 10.69568682
A13: Начальник Харківського ЛВУМГ | D13: Ханикін С.Ю. | F13: 03.05.2017 р.
A14: Підрозділу підприємства, якому підпорядкована лабораторія | D14: прізвище | E14: підпис | F14: дата
A15: Завідувач лабораторії Харківського п/м Харківського ЛВУМГ | D15: Крупчицький Д.О. | F15: 03.05.2017 р.
A16: Лабораторія, де здійснювалось вимірювання газу | D16: прізвище | E16: підпис | F16: дата
A17: Інженер служби ГВ та М | D17: Семутін С.М. | F17: 03.05.2017 р.
A18: Підрозділу, відповідального за облік газу за маршрутом | D18: прізвище | E18: підпис | F18: дата

Sheet variablesList (hidden)
A1: 3 | B1: x:\gaysin | C1: 10, 11, 24, 25, 127, 128, 132, 180, 207, 215 | D1: x:\
B2: x:\Illinci
B3: x:\Talne
